Cogmind - Beta 13 @@@ ROGUE MODE // 2024.05.03 @ 13:54:57 Player: Ashlemon Result: Destroyed by G-47 Trooper with Particle Gun Performance ------------- Evolutions (0) 0 Regions Visited (1) 200 Robots Destroyed (5) 25 Value Destroyed (141) 141 Prototype IDs (0) 0 Alien Tech Used (0) 0 Bonus (0) 0 TOTAL SCORE: 366 Bonus ------- None Cogmind --------- Core Integrity 0/250 Matter 300/300 Energy 100/100 System Corruption 0% Temperature Cool (9) Movement Core (100) Ox1 Location -10/Materials Parts ------- > --- POWER (1) -------- (None) > --- PROPULSION (2) --- (None) > --- UTILITY (2) ------ Small Storage Unit > --- WEAPON (2) ------- (None) > --- INVENTORY (8) ---- Light Ion Engine Aluminum Leg Aluminum Leg Wheel Compact Wheel Light Assault Rifle Peak State ------------ > --- POWER ------------ Ion Engine > --- PROPULSION ------- Light Treads Light Treads > --- UTILITY ---------- Small Storage Unit Terrain Scanner > --- WEAPON ----------- Small Laser Welding Torch > --- INVENTORY -------- Light Ion Engine Aluminum Leg Aluminum Leg Wheel Compact Wheel Light Assault Rifle [Rating: 7] Favorites ----------- Power Ion Engine Engine Ion Engine Propulsion Light Treads Treads Light Treads Utility Small Storage Unit Device Terrain Scanner Storage Small Storage Unit Weapon Small Laser Energy Gun Small Laser Special Weapon Welding Torch Build | -11 -10 ------- Run | Yrd Mat Slots Evolved . | . . Power . | . . Propulsion . | . . Utility . | . . Weapon . | . . Parts Attached 8 | 6 2 Power 1 | 1 . Engine 1 | 1 . Core . | . . Reactor . | . . Propulsion 2 | 2 . Treads 2 | 2 . Leg . | . . Wheel . | . . Hover . | . . Flight . | . . Utility 2 | 1 1 Device 1 | . 1 Storage 1 | 1 . Processor . | . . Hackware . | . . Protection . | . . Artifact . | . . Weapon 3 | 2 1 Energy Gun 2 | 2 . Energy Cannon . | . . Ballistic Gun . | . . Ballistic Cannon . | . . Launcher . | . . Special Weapon 1 | . 1 Impact Weapon . | . . Slashing Weapon . | . . Piercing Weapon . | . . Special Melee Weapon . | . . Unidentified Prototypes . | . . Parts Lost 7 | . 7 Power 1 | . 1 Propulsion 2 | . 2 Utility 1 | . 1 Weapon 3 | . 3 Highest Loss Streak 7 | . 7 To Critical Strikes . | . . Average Slot Usage (%) 79 | . 79 Engine 13 | . 13 Treads 23 | . 23 Device 2 | . 2 Storage 14 | . 14 Energy Gun 24 | . 24 Naked Turns . | . . Heaviest Build 13 | 13 13 Greatest Support 40 | 40 40 Greatest Overweight (x) 3 | . 3 Average Overweight (x) . | . . Largest Inventory Capacity 8 | 8 8 Average Capacity 7 | 7 8 Most Carried 6 | 6 6 Average Carried 5 | 4 6 Final Capacity 8 | 8 8 Final Carried 6 | 6 6 Class Distribution -------------------- 100% | Mutant Dominant Class ---------------- Mutant | -10/Materials Resources | -11 -10 ----------- Run | Yrd Mat Matter Collected 260 | 260 . Remotely . | . . Salvage Created 176 | . 176 Parts 13 | . 13 Haulers Intercepted . | . . Recyclers Shooed . | . . Parts Field Recycled . | . . Retrieved Matter . | . . Parts Self-Destructed . | . . Prevented . | . . Kills | -11 -10 ------- Run | Yrd Mat Combat Hostiles Destroyed 4 | . 4 Guns 4 | . 4 Classes Destroyed 2 | . 2 Builder 1 | . 1 Grunt 4 | . 4 Best Kill Streak 4 | . 4 Combat Bots Only 3 | . 3 Max Kills in Single Turn 1 | . 1 Gunslinging . | . . Exploded . | . . Melee . | . . Uniques/NPCs Destroyed . | . . Combat | -11 -10 -------- Run | Yrd Mat Hostile Shots Fired 101 | . 101 Missed 28 | . 28 Damage Taken 877 | . 877 Core 264 | . 264 Absorbed by Shields . | . . Core Remaining (%) 100 | 100 . Volleys Fired 29 | . 29 Largest 2 | . 2 Hottest 80 | . 80 Shots Fired 39 | . 39 Gun 38 | . 38 Cannon . | . . Launcher . | . . Special 1 | . 1 Kinetic . | . . Thermal 30 | . 30 Explosive . | . . Electromagnetic 9 | . 9 Robot Hit Streak 10 | . 10 Robot Miss Streak 4 | . 4 Penetration Max . | . . Secondary Targets . | . . Shots Hit Robots 23 | . 23 Core Hits 10 | . 10 Critical Kills . | . . Critical Parts Destroyed . | . . Critical Strikes . | . . Melee Attacks . | . . Impact . | . . Slashing . | . . Piercing . | . . Sneak Attacks . | . . Combat Hostiles . | . . Follow-up Attacks . | . . Damage Inflicted 284 | . 284 Guns 278 | . 278 Cannons . | . . Explosions . | . . Melee . | . . Ramming 6 | . 6 Kinetic . | . . Thermal 206 | . 206 Explosive . | . . Electromagnetic 72 | . 72 Impact . | . . Slashing . | . . Piercing . | . . Highest Corruption . | . . Average Corruption . | . . Corruption Purged . | . . Corruption Blocked . | . . Overload Shots . | . . Overflow Damage . | . . Projectiles . | . . Explosions . | . . Melee . | . . Knockbacks . | . . Impact . | . . Kinetic . | . . Secondary . | . . Self-Inflicted Damage 2 | . 2 Shots . | . . Rammed 3 | . 3 Targets Rammed 3 | . 3 Kicked . | . . Crushed . | . . Highest Temperature 132 | . 132 Average Temperature 46 | . 46 Received Heat Transfer 510 | . 510 Siege Activations . | . . Robots Corrupted . | . . Combat Hostiles . | . . Parts Fried . | . . Impact Corruptions . | . . Robots Melted . | . . Combat Hostiles . | . . Parts Melted . | . . Heat Transferred 475 | . 475 Parts Sabotaged . | . . Parts Stolen . | . . Parts Stripped . | . . Power Chain Reactions . | . . Alert | -11 -10 ------- Run | Yrd Mat Peak Influence 105 | . 105 Initial . | . . Average 24 | . 32 Maximum Alert Level . | . . Low Security (%) 100 | 100 100 Level 1 . | . . Level 2 . | . . Level 3 . | . . Level 4 . | . . Level 5 . | . . High Security . | . . Max Security . | . . Squads Dispatched 2 | . 2 Investigation 1 | . 1 Extermination . | . . Reinforcement 1 | . 1 Assault . | . . Garrison . | . . Intercept . | . . Searches Triggered . | . . Construction Impeded . | . . Haulers Reinforced . | . . Active Scanning Responses . | . . Cargo Convoy Interrupts . | . . Stealth | -11 -10 --------- Run | Yrd Mat Distress Signals . | . . Communications Jammed . | . . Distress Signals . | . . Times Spotted 11 | . 11 Peak Tracking Total 6 | . 6 Tactical Retreats 1 | . 1 Traps | -11 -10 ------- Run | Yrd Mat Traps Triggered 1 | . 1 Indirectly . | . . Trap Hack Attempts . | . . Triggered . | . . Disarmed . | . . Reprogrammed . | . . Reused . | . . Traps Extracted . | . . Installed . | . . Triggered . | . . Machines | -11 -10 ---------- Run | Yrd Mat Machines Disabled . | . . Max in Single Turn . | . . Machines Repaired . | . . Machines Dismantled . | . . Machines Sabotaged . | . . Overloaded Fab Kills . | . . Hacking | -11 -10 --------- Run | Yrd Mat Machines Accessed . | . . Terminals . | . . Fabricators . | . . Repair Stations . | . . Recycling Units . | . . Scanalyzers . | . . Garrison Access . | . . Total Hacks . | . . Successful . | . . Failed . | . . Catastrophic . | . . Database Lockouts . | . . Manual . | . . Terminals . | . . Fabricators . | . . Repair Stations . | . . Recycling Units . | . . Scanalyzers . | . . Garrison Access . | . . Terminal Hacks . | . . Fabricator Hacks . | . . Repair Station Hacks . | . . Recycling Unit Hacks . | . . Scanalyzer . | . . Garrison Access Hacks . | . . Unauthorized Hacks . | . . Terminals . | . . Fabricators . | . . Repair Stations . | . . Recycling Units . | . . Scanalyzers . | . . Garrison Access . | . . Data Cores Recovered . | . . Used . | . . Hacking Detections . | . . Full Trace Events . | . . Feedback Events . | . . Feedback Blocked . | . . Robot Schematics Acquired . | . . Robots Built . | . . Authchips . | . . Time . | . . Total Robot Build Rating . | . . Part Schematics Acquired . | . . Parts Built . | . . Authchips . | . . Time . | . . Total Part Build Rating . | . . Parts Repaired . | . . Time . | . . Parts Recycled . | . . Recycled Matter . | . . Retrieved Matter . | . . Retrieved Components . | . . Parts Scanalyzed . | . . Part Schematics Acquired . | . . Parts Damaged . | . . Bothacking | -11 -10 ------------ Run | Yrd Mat Used RIF Installer . | . . Robots Hacked . | . . Non-combat . | . . Combat . | . . Robot Hacks Applied . | . . Relay Couplers Released . | . . Fabnet Peak Effective % . | . . Robots Rewired . | . . Allies Hacked . | . . Hacks Repelled . | . . Allies | -11 -10 -------- Run | Yrd Mat Total Allies . | . . Largest Group . | . . Highest-Rated Group . | . . Highest-Rated Ally . | . . Total Orders . | . . Ally Attacks . | . . Total Damage . | . . Kills . | . . Allies Corrupted . | . . Allies Melted . | . . Intel | -11 -10 ------- Run | Yrd Mat Robot Analysis Total . | . . Derelict Logs Recovered . | . . Drone Launches . | . . Drone Recoveries . | . . Exploration | -11 -10 ------------- Run | Yrd Mat Turns Passed 387 | 95 292 Spaces Moved 188 | 53 135 Core 9 | 3 6 Treads 179 | 50 129 Legs . | . . Wheels . | . . Hover . | . . Flight . | . . Fastest Speed 50 | 50 100 Average Speed 158 | 153 161 Slowest Speed 200 | 160 200 Overloaded Moves . | . . Propulsion Burnouts . | . . Robots Hopped . | . . Cave-ins Triggered . | . . Exploration Rate (%) 10 | 4 17 Regions Visited 1 Branch Regions . Pre-discovered Areas . | . . Known Exits Taken . | . . Unknown Exits Taken 1 | 1 . Scrap Searched . | . . Spaces Dug . | . . Terrain Destroyed . | . . Melee . | . . Projectile . | . . AOE . | . . Terrain Rammed . | . . Walls Destroyed . | . . Machines Disabled . | . . Actions | -11 -10 --------- Run | Yrd Mat Total 233 | 64 169 Wait . | . . Move 187 | 52 135 Hop . | . . Pick Up 6 | 6 . Fast Attach 8 | 6 2 Attach . | . . Detach . | . . Swap . | . . Drop . | . . Fire 29 | . 29 Melee . | . . Ram 3 | . 3 Kick . | . . Crush . | . . Escape Stasis . | . . Rewire . | . . Trap . | . . Miscellaneous . | . . Route ------- -11/Scrapyard -10/Materials History --------- Turn | Location | Event 19 | -11/Scrapyard | Discovered new exit (range 15) 96 | -11/Scrapyard | Entered Materials 306 | -10/Materials | Build established: Mutant 345 | -10/Materials | Core integrity fell below 50% 373 | -10/Materials | Core integrity fell below 20% 388 | -10/Materials | Destroyed by G-47 Trooper with Particle Gun Last Messages --------------- U-05 Engineer destroyed. G-34 Mercenary destroyed. R-06 Scavenger collects Heat Sink. R-06 Scavenger collects Aluminum Leg. EM Pulse Gun destroyed. R-06 Scavenger collects Terrain Scan Processor. K-01 Serf collects debris. Acquired Welding Torch. Acquired Terrain Scanner. Lgt. Treads destroyed. Critical hit (Burn: +37). Welding Torch destroyed. Lgt. Treads destroyed. Processing Tank disabled. K-01 Serf collects debris. Ion Engine destroyed. G-34 Mercenary destroyed. Terrain Scanner destroyed. Sml. Laser destroyed. Slammed into G-47 Trooper. Map ----- +----------------------------------------------------+ | ???????????????????????????????????????? | | ???????????????????????????????????????? | | ???????????????????????????????????????? | | ???????????????????????????????????????? | | ???????????????????????????????????????? | | ???????????????????????#####???????????? | | ???????????????# ??????# #???????????? | | ???????????????# ?????# #???????????? | | ???????????????+ ##### #???????????? | | ???????????????# #???????????? | | ???????????????# ###########?? | | ???????????????# """ # [ #?? | | ???????????????# """ # #?? | | ???????????????# """ # """"""" #?? | | ???????????????# """ # """"""" #?? | | ???????????????# """ # """"""" #?? | | ???????????????# + """"""" #?? | | ?????????#?????#!! # """"""" #?? | | ???????????????#!! """ # #?? | | ???????????????#!! """ ###+#######?? | | ???????????????# """ ## #???????? | | ???????????????# """ ## #???????? | | ??????????????## " " ## #??#????? | | ???????????????# ## #???????? | | ???????????????# r g ## #???????? | | ??????????????## =%######@#### #??#????? | | ???????????##### =# %% # #?????#?? | | ???????????#!! # # #??#????? | | ???????????#!! # g # #???????? | | ???????????#!! % +% # #?#?????? | | ???????????#!! %# # #???????? | | ???????????#!! ## # #???????? | | ???????????#!! ?# # #???????? | | ???????????##### ?# # #??#????? | | ???????????????# ?#######+### #???????? | | ??????????????? ?????????#?# #???????? | | ?????????????? ???????????# #???????? | | ?????????????? ???????????# #???????? | | ????????????? ???????? ??# #???????? | | ???????????? ????????????# #???????? | | ???????????? ???????????? ???????? | | ??????????? ???????????? ???????? | | ??????????? ??????????? ??????? | | ???????????#?? ????????????? ??????? | | ???????????????????????????#######?????? | | ???????????????????????????????????????? | | ???????????????????????????????????????? | | ???????????????????????????????????????? | | ???????????????????????????????????????? | | ???????????????????????????????????????? | +----------------------------------------------------+ Best States ------------- Heat Dissipation 25 Energy Generation 10 Energy Capacity 250 Matter Stores 300 Matter Capacity 300 Sight Range 16 Terrain Scan Range 14 Terrain Scan Density 10 Evasion (%) 40 Recoil Reduction 2 Item Schematics ----------------- None Robot Schematics ------------------ None Fabricated ------------ Nothing Alien Tech Used ----------------- None Achievements -------------- None Challenges ------------ None Game ------ Seed GrapheneAblativeBarrier Manual? 0 Play Time 00:03:39 Cumulative 6.2 hours Start 2024.05.03 @ 13:51:36 End 2024.05.03 @ 13:54:57 Sessions 1 Manual Loads 0 Difficulty Rogue Special Mode None Game No. 16 Rogue 16 Adventurer 0 Explorer 0 Win Type - Total 0 Types 0/0/0/0/0/0/0/0/0 Lore% 4 Gallery% 14 Achievement% 11 Wizard Run 0 Options --------- Layout 1 ASCII 0 Keyboard 1 Movement Arrows Keybinds 0 Fullscreen 1 Font 24/Smallcaps Map View 50x35 Zoom Use 0% Tactical HUD 0 Map Filters NONE Filters NONE Steam 1 RUN: 179bfa85-5ce4-42cf-bdec-68eb4c9064ce